bitfinex-derivatives/quotes_BTCF0:USTF0_20210708
["timestamp","ask_amount","ask_price","bid_price","bid_amount"]
[1625735749833,0.24057544,32394.0,32393.0,1.49631974]
[1625735750283,0.24057544,32394.0,32393.0,1.06452974]
[1625735751335,0.24057544,32394.0,32393.0,1.15572974]
[1625735751788,0.24057544,32402.0,32393.0,1.15572974]
[1625735751938,0.24057544,32402.0,32394.0,0.00910247]
[1625735752238,0.24057544,32406.0,32395.0,0.01273762]
[1625735752395,0.24057544,32406.0,32395.0,0.47641562]
[1625735752541,0.24057544,32406.0,32396.0,0.50910161]
[1625735752689,0.24057544,32406.0,32405.0,0.1]
[1625735752842,0.24057544,32406.0,32405.0,0.36346079]
[1625735752995,0.24057544,32406.0,32405.0,0.36753453]
[1625735753323,0.24057544,32406.0,32405.0,0.35843374]
[1625735753746,0.24057544,32406.0,32405.0,0.83958462]
[1625735754955,0.24057544,32406.0,32405.0,0.93068462]
[1625735756073,0.24057544,32406.0,32405.0,0.93978583]
[1625735762085,0.24057544,32410.0,32405.0,0.93978583]
[1625735762308,0.24057544,32410.0,32406.0,0.00910041]
[1625735762458,0.24057544,32410.0,32406.0,0.01273879]
[1625735762610,0.24057544,32413.0,32407.0,0.47443962]
[1625735762912,0.24057544,32416.0,32408.0,0.01273786]
[1625735763064,0.25731635,32427.0,32412.0,0.1]
[1625735763208,1.60016426,32428.0,32413.0,0.00909875]
[1625735763509,1.0,32428.0,32413.0,0.01457673]
[1625735763659,1.0,32428.0,32414.0,0.01273624]
[1625735763859,1.0,32429.0,32427.0,0.24057544]
[1625735763986,1.19207544,32431.0,32427.0,0.50084544]
[1625735764263,0.24057544,32431.0,32428.0,0.45604342]
[1625735764563,0.24057544,32434.0,32428.0,0.45604342]
[1625735764867,0.24057544,32434.0,32429.0,0.003637]
[1625735765313,0.24057544,32434.0,32433.0,0.1]
[1625735765614,0.24057544,32434.0,32433.0,0.5588888]
[1625735765762,0.24057544,32434.0,32433.0,0.79946424]
[1625735765916,0.24057544,32434.0,32433.0,0.79582744]
[1625735766517,0.24057544,32434.0,32433.0,0.88862744]
[1625735766664,0.24057544,32434.0,32433.0,0.89226401]
[1625735767267,0.24057544,32434.0,32433.0,0.88862744]
[1625735769293,0.24057544,32434.0,32433.0,1.10123744]
[1625735774253,0.24057544,32437.0,32433.0,1.10123744]
[1625735774399,0.24057544,32441.0,32433.0,1.60123744]
[1625735774549,0.24057544,32441.0,32433.0,1.60487346]
[1625735774699,1.11032231,32453.0,32434.0,0.00363598]
[1625735774852,0.59797831,32453.0,32434.0,0.00363598]
[1625735775002,0.59831559,32455.0,32434.0,0.00363598]
[1625735775150,1.0,32453.0,32435.0,0.461561]
[1625735775299,1.0,32453.0,32449.0,0.1]
[1625735775454,1.0,32452.0,32449.0,0.40626]
[1625735775749,1.5988047,32455.0,32449.0,0.40626]
[1625735775899,1.25654297,32455.0,32449.0,0.30626]
[1625735776050,0.24057544,32454.0,32452.0,0.24057544]
[1625735776200,1.24057544,32454.0,32452.0,0.24057544]
[1625735776501,0.24057544,32454.0,32452.0,0.24057544]
[1625735776651,0.24057544,32454.0,32453.0,0.1]
[1625735777100,1.24057544,32454.0,32453.0,0.1]
[1625735777701,0.24057544,32454.0,32453.0,0.1916]
[1625735779653,0.24057544,32454.0,32453.0,0.652107]
[1625735780104,0.24057544,32454.0,32453.0,0.560507]
[1625735780703,0.48115088,32460.0,32453.0,0.560507]
[1625735781008,0.48115088,32460.0,32453.0,0.552207]
[1625735781457,0.48115088,32460.0,32459.0,0.1]
[1625735781606,0.48115088,32460.0,32459.0,0.37753]
[1625735782058,0.48115088,32460.0,32459.0,0.61810544]
[1625735782371,0.48115088,32460.0,32459.0,1.08125344]
[1625735784021,0.48115088,32460.0,32459.0,0.34057544]
[1625735784168,1.48115088,32460.0,32459.0,0.1]
[1625735784614,1.48115088,32460.0,32452.0,0.48115088]
[1625735784765,1.81857088,32460.0,32452.0,0.48115088]
[1625735785067,1.81857088,32460.0,32459.0,0.1]
[1625735785364,1.81857088,32460.0,32453.0,0.464889]
[1625735785515,1.81857088,32460.0,32452.0,0.48115088]
[1625735786041,0.24057544,32453.0,32452.0,0.48115088]
[1625735786191,0.58762544,32453.0,32452.0,0.48115088]
[1625735786342,0.58762544,32453.0,32452.0,0.94082888]
[1625735786642,0.58762544,32453.0,32452.0,0.94446428]
[1625735788141,1.58762544,32453.0,32452.0,0.94446428]
[1625735788442,1.58762544,32453.0,32452.0,0.4633134]
[1625735790171,1.82820088,32453.0,32452.0,0.4633134]
[1625735791974,0.82820088,32453.0,32452.0,0.4633134]
[1625735792128,0.48115088,32453.0,32452.0,0.4633134]
[1625735794301,0.48115088,32453.0,32452.0,0.5633134]
[1625735794900,0.83472088,32453.0,32452.0,0.5633134]
[1625735795062,0.83472088,32453.0,32452.0,0.1036354]
[1625735795200,1.83472088,32453.0,32452.0,0.1036354]
[1625735795350,1.83472088,32453.0,32452.0,0.0036354]
[1625735795650,1.83472088,32453.0,32444.0,0.01272401]
[1625735796100,0.48115088,32445.0,32444.0,0.01272401]
[1625735796251,1.71936088,32445.0,32444.0,0.01272401]
[1625735796851,1.71936088,32445.0,32444.0,0.11272401]
[1625735797152,0.71936088,32445.0,32444.0,0.11272401]
[1625735797301,1.71936088,32445.0,32444.0,0.11272401]
[1625735799628,0.71936088,32445.0,32444.0,0.11272401]
[1625735799779,1.71936088,32445.0,32444.0,0.11272401]
[1625735801227,1.71936088,32445.0,32433.0,0.24057544]
[1625735801395,0.71936088,32445.0,32433.0,0.24057544]
[1625735801529,1.71936088,32445.0,32433.0,0.24057544]
[1625735801674,1.71936088,32445.0,32434.0,0.01272667]
[1625735802261,1.48115088,32435.0,32434.0,0.01272667]
[1625735802424,1.71742088,32435.0,32434.0,0.01272667]
[1625735803165,1.71742088,32435.0,32434.0,0.00909048]
[1625735803323,0.71742088,32435.0,32425.0,0.24057544]
[1625735803622,1.71742088,32435.0,32431.0,0.01272955]
[1625735803908,1.71742088,32435.0,32426.0,0.01272983]
[1625735804207,0.71742088,32435.0,32432.0,0.00363713]
[1625735804358,0.71742088,32435.0,32427.0,0.01272984]
[1625735804510,1.0,32428.0,32427.0,0.01272984]
[1625735804659,1.23274,32428.0,32426.0,0.01272972]
[1625735804811,0.23274,32428.0,32426.0,0.01272972]
[1625735806163,0.48115088,32427.0,32426.0,0.01272972]
[1625735807812,0.48115088,32427.0,32426.0,0.00363706]
[1625735815222,0.48115088,32435.0,32426.0,0.33859875]
[1625735815338,1.0,32441.0,32427.0,0.00909516]
[1625735815481,1.0,32443.0,32428.0,0.0926]
[1625735815632,1.0,32443.0,32429.0,0.00909438]
[1625735815783,0.9634,32444.0,32429.0,0.02182092]
[1625735815784,1.9634,32444.0,32429.0,0.02182092]
[1625735816076,1.9634,32444.0,32443.0,0.1]
[1625735816224,0.96230176,32444.0,32443.0,0.35609]
[1625735816674,0.96230176,32444.0,32443.0,0.3597259]
[1625735817800,1.96230176,32444.0,32443.0,0.3597259]
[1625735818106,1.96230176,32444.0,32443.0,0.1036359]
[1625735819528,0.96230176,32444.0,32443.0,0.1036359]
[1625735819681,1.96230176,32444.0,32443.0,0.1036359]
[1625735823510,0.96230176,32444.0,32443.0,0.1036359]
[1625735825535,0.96230176,32444.0,32443.0,0.3655159]
[1625735827037,0.96230176,32444.0,32443.0,0.8302789]
[1625735828388,0.72172632,32444.0,32443.0,1.07085434]
[1625735833189,0.99820632,32444.0,32443.0,1.07085434]
[1625735837245,0.72172632,32444.0,32443.0,1.07085434]
[1625735838898,0.24057544,32452.0,32443.0,1.07994629]
[1625735839081,0.60708697,32455.0,32443.0,1.57994629]
[1625735839283,0.34675007,32455.0,32444.0,0.02181229]
[1625735839427,0.9912,32460.0,32447.0,1.80708803]
[1625735839574,0.9851,32465.0,32451.0,1.80677545]
[1625735839722,0.9851,32465.0,32452.0,0.50908943]
[1625735839874,0.9851,32465.0,32453.0,0.0090893]
[1625735840024,0.08723069,32467.0,32453.0,1.81938579]
[1625735840197,0.08723069,32467.0,32464.0,0.1]
[1625735840337,0.93543473,32475.0,32464.0,0.43092]
[1625735840487,0.93543473,32475.0,32474.0,0.96230176]
[1625735840626,0.1746498,32481.0,32474.0,1.75113176]
[1625735840780,0.17507225,32487.0,32474.0,1.75113176]
[1625735840925,0.17507225,32487.0,32475.0,0.00908344]
[1625735841076,0.17511435,32489.0,32475.0,0.01271553]
[1625735841227,0.17511435,32489.0,32476.0,0.462865]
[1625735841376,0.17511435,32489.0,32486.0,0.1]
[1625735841527,1.22471777,32495.0,32486.0,0.31941]
[1625735841678,1.22471777,32495.0,32487.0,0.00988985]
[1625735841979,0.0924,32493.0,32487.0,0.006258]
[1625735842128,1.0,32490.0,32477.0,0.057]
[1625735842277,1.0,32490.0,32474.0,0.96230176]
[1625735842428,0.24057544,32485.0,32484.0,0.24057544]
[1625735842727,0.24057544,32485.0,32484.0,0.34057544]
[1625735842877,0.24057544,32485.0,32484.0,0.34351444]
[1625735843026,0.24057544,32485.0,32484.0,0.1]
[1625735843184,1.24057544,32485.0,32484.0,0.1]
[1625735844233,1.47669544,32485.0,32484.0,0.1]
[1625735844380,1.71727088,32485.0,32484.0,0.1]
[1625735845429,0.71727088,32485.0,32484.0,0.1]
[1625735845581,1.71727088,32485.0,32484.0,0.1]
[1625735848883,1.23612,32485.0,32484.0,0.1]
[1625735849033,1.0,32487.0,32484.0,0.35927]
[1625735849333,0.24057544,32491.0,32484.0,0.25927]
[1625735849483,0.24057544,32491.0,32485.0,0.462681]
[1625735849785,0.24057544,32491.0,32490.0,0.1]
[1625735850234,1.24057544,32491.0,32490.0,0.1]
[1625735850385,1.48115088,32491.0,32490.0,0.1]
[1625735850688,0.48115088,32491.0,32490.0,0.1]
[1625735851310,1.48115088,32491.0,32490.0,0.1]
[1625735851440,1.48115088,32491.0,32489.0,0.24057544]
[1625735851589,1.72086088,32491.0,32489.0,0.24057544]
[1625735851889,1.72086088,32491.0,32482.0,0.24057544]
[1625735852039,1.0,32490.0,32482.0,0.24057544]
[1625735852342,0.48115088,32491.0,32482.0,0.24057544]
[1625735852489,1.0,32490.0,32489.0,0.1]
[1625735852640,1.9365,32494.0,32489.0,0.39839]
[1625735852790,1.9365,32494.0,32490.0,0.457994]
[1625735853089,1.9365,32494.0,32489.0,0.29839]
[1625735853389,1.9365,32494.0,32493.0,0.1]
[1625735854440,1.9365,32494.0,32493.0,0.58115088]
[1625735857894,2.9365,32494.0,32493.0,0.58115088]
[1625735858344,1.9365,32494.0,32493.0,0.58115088]
[1625735858496,2.17707544,32494.0,32493.0,0.34057544]
[1625735858794,3.17707544,32494.0,32493.0,0.34057544]
[1625735859845,2.17707544,32494.0,32493.0,0.34057544]
[1625735860747,3.17707544,32494.0,32493.0,0.34057544]
[1625735860896,2.17707544,32494.0,32493.0,0.34057544]
[1625735861047,3.17707544,32494.0,32493.0,0.34057544]
[1625735861496,2.17707544,32494.0,32493.0,0.34057544]
[1625735861647,3.17707544,32494.0,32493.0,0.34057544]
[1625735861796,2.17707544,32494.0,32493.0,0.34057544]
[1625735861947,3.17707544,32494.0,32493.0,0.34057544]
[1625735862248,2.17707544,32494.0,32493.0,0.34057544]
[1625735862999,3.17707544,32494.0,32493.0,0.34057544]
[1625735864201,2.17707544,32494.0,32493.0,0.34057544]
[1625735865854,2.17707544,32494.0,32493.0,0.34420668]
[1625735866153,3.17707544,32494.0,32493.0,0.34420668]
[1625735867204,3.17707544,32494.0,32493.0,0.34057544]
[1625735867355,3.17707544,32494.0,32493.0,0.1]
[1625735867504,3.49677544,32494.0,32493.0,0.1]
[1625735867817,3.49677544,32494.0,32493.0,0.10363173]
[1625735868107,3.49677544,32494.0,32493.0,0.00363173]
[1625735868257,3.49677544,32494.0,32486.0,0.057]
[1625735868407,3.49677544,32494.0,32485.0,0.24057544]
[1625735868559,3.49677544,32494.0,32487.0,0.00363189]
[1625735868857,3.49677544,32494.0,32486.0,0.00363192]
[1625735869007,3.49677544,32494.0,32488.0,0.00363197]
[1625735869456,3.49677544,32494.0,32486.0,0.00363202]
[1625735870207,1.0,32487.0,32486.0,0.00363202]
[1625735870358,1.22783,32487.0,32486.0,0.00363202]
[1625735870507,1.22783,32487.0,32486.0,0.10363202]
[1625735870659,1.70898088,32487.0,32486.0,0.10363202]
[1625735873511,1.70898088,32487.0,32486.0,3.202e-05]
[1625735873821,1.70898088,32487.0,32477.0,0.24057544]
[1625735873822,1.70898088,32487.0,32483.0,0.00363235]
[1625735874111,0.70898088,32487.0,32478.0,0.00363257]
[1625735874410,0.70898088,32487.0,32484.0,0.00363265]
[1625735874565,0.70898088,32487.0,32479.0,0.00363269]
[1625735874714,0.48115088,32485.0,32479.0,0.00363269]
[1625735874861,0.48115088,32485.0,32478.0,0.00363271]
[1625735875013,1.0,32480.0,32478.0,0.00363271]
[1625735875180,1.0,32480.0,32478.0,0.01271389]
[1625735875313,1.0,32482.0,32478.0,0.01271389]
[1625735875465,1.0,32482.0,32478.0,0.30143389]
[1625735875612,1.0,32481.0,32478.0,0.30143389]
[1625735875912,1.0,32481.0,32479.0,0.01271263]
[1625735876062,1.0,32483.0,32480.0,0.1]
[1625735876363,1.0,32483.0,32479.0,0.01271263]
[1625735876511,1.0,32483.0,32481.0,0.01271253]
[1625735876662,1.0,32483.0,32482.0,0.34057544]
[1625735877111,1.0,32483.0,32482.0,0.34420767]
[1625735877412,1.0,32483.0,32482.0,0.10363223]
[1625735878314,0.48115088,32485.0,32482.0,0.10363223]
[1625735878464,1.0,32484.0,32482.0,0.11271249]
[1625735878615,1.0,32484.0,32483.0,0.24057544]
[1625735878766,1.0,32484.0,32483.0,0.2442075]
[1625735878914,1.0,32486.0,32483.0,0.25328743]
[1625735879066,1.0,32486.0,32483.0,0.35328743]
[1625735879214,1.9365,32494.0,32484.0,0.01271039]
[1625735879589,1.9365,32494.0,32485.0,0.454631]
[1625735879741,1.9365,32494.0,32485.0,0.685891]
[1625735879890,1.9365,32494.0,32493.0,0.1]
[1625735880040,1.9365,32494.0,32493.0,0.3618]
[1625735880343,1.9365,32494.0,32493.0,0.37450711]
[1625735880648,1.9365,32494.0,32493.0,0.85565799]
[1625735880945,2.9365,32494.0,32493.0,0.85565799]
[1625735881393,2.9365,32494.0,32493.0,0.84658148]
[1625735881692,1.9365,32494.0,32493.0,0.84658148]
[1625735882672,2.17707544,32494.0,32493.0,0.84658148]
[1625735883121,3.17707544,32494.0,32493.0,0.84658148]
[1625735883422,3.17707544,32494.0,32493.0,0.58478148]
[1625735883573,3.17707544,32494.0,32493.0,0.0036306]
[1625735884174,3.17707544,32494.0,32484.0,0.01271022]
[1625735884324,3.43556544,32494.0,32484.0,0.01271022]
[1625735884776,0.72172632,32485.0,32478.0,0.24057544]
[1625735884923,1.04871632,32485.0,32478.0,0.24057544]
[1625735885074,0.32699,32485.0,32478.0,0.24057544]
[1625735885254,0.32699,32485.0,32479.0,0.0127099]
[1625735885374,0.32699,32485.0,32479.0,0.7502049]
[1625735885524,0.32699,32485.0,32484.0,0.1]
[1625735885825,0.32699,32485.0,32484.0,0.11270909]
[1625735885974,1.0,32490.0,32484.0,0.11270909]
[1625735886124,1.0,32491.0,32484.0,0.11270909]
[1625735886273,1.0,32491.0,32484.0,0.47694509]
[1625735886424,1.0,32491.0,32485.0,0.01270868]
[1625735886724,1.0,32491.0,32490.0,0.24057544]
[1625735886873,1.0,32491.0,32490.0,0.63170544]
[1625735887174,1.0,32491.0,32490.0,0.64441389]
[1625735887324,2.17707544,32494.0,32490.0,0.64441389]
[1625735887623,1.0,32491.0,32490.0,0.64441389]
[1625735887773,1.0,32491.0,32490.0,0.53170544]
[1625735887924,1.0,32491.0,32490.0,0.53533643]
[1625735888074,1.0,32491.0,32490.0,0.63533643]
[1625735888223,2.17707544,32494.0,32490.0,5.71813643]
[1625735888550,2.17707544,32494.0,32491.0,0.0036309]
[1625735888690,2.17707544,32494.0,32493.0,0.24057544]
[1625735889124,1.9365,32494.0,32493.0,0.80295509]
[1625735889275,0.24057544,32500.0,32493.0,0.81203116]
[1625735889573,0.24057544,32504.0,32494.0,0.00363031]
[1625735889897,0.24057544,32504.0,32494.0,0.01270562]
[1625735890023,0.24057544,32504.0,32495.0,0.463062]
[1625735890206,0.24057544,32504.0,32503.0,0.1]
[1625735890655,1.24057544,32504.0,32503.0,0.1]
[1625735890775,1.48115088,32504.0,32503.0,0.10363036]
[1625735891300,1.48115088,32504.0,32503.0,0.1]
[1625735891483,0.48115088,32504.0,32503.0,0.1]
[1625735891601,1.48115088,32504.0,32503.0,0.10363045]
[1625735891751,1.48115088,32504.0,32503.0,0.00363045]
[1625735892051,0.48115088,32504.0,32503.0,0.1]
[1625735892374,1.48115088,32504.0,32503.0,0.10363052]
[1625735894309,0.48115088,32504.0,32503.0,0.10363052]
[1625735894608,0.24057544,32504.0,32503.0,0.10363052]
[1625735894760,0.24057544,32504.0,32503.0,0.5847814]
[1625735899490,1.47738544,32504.0,32503.0,0.5847814]
[1625735899642,1.47738544,32504.0,32503.0,0.58115088]
[1625735899795,1.47738544,32504.0,32503.0,0.1]
[1625735900243,2.5272928,32504.0,32503.0,0.1]
[1625735900544,4.45382719,32504.0,32503.0,0.1]
[1625735900848,4.69440263,32504.0,32503.0,0.1]
[1625735902270,3.46847396,32504.0,32503.0,0.1]
[1625735902570,4.69362084,32504.0,32503.0,0.1]
[1625735902720,1.4185666,32504.0,32503.0,0.1]
[1625735903320,0.71796088,32504.0,32503.0,0.1]
[1625735903486,0.24057544,32504.0,32503.0,0.33546999]
[1625735903923,0.24057544,32504.0,32503.0,0.79619899]
[1625735904074,0.70173944,32509.0,32503.0,0.79619899]
[1625735904222,0.70173944,32509.0,32503.0,1.87832578]
[1625735904373,0.70173944,32509.0,32504.0,0.00362951]
[1625735904673,0.70173944,32509.0,32505.0,0.463768]
[1625735904824,0.70173944,32509.0,32508.0,0.48115088]
[1625735905125,0.70173944,32509.0,32508.0,0.58115088]
[1625735905577,0.70102954,32510.0,32508.0,0.5847803]
[1625735905880,1.0,32509.0,32508.0,0.5847803]
[1625735906028,1.0,32509.0,32508.0,0.48115088]
[1625735906188,0.70102954,32510.0,32508.0,0.48115088]
[1625735906329,1.0514567,32511.0,32508.0,0.83435088]
[1625735906330,0.70129072,32511.0,32508.0,0.83435088]
[1625735906477,0.70129072,32511.0,32508.0,0.83798016]
[1625735906629,0.70129072,32511.0,32509.0,0.0036292]
[1625735906778,0.70129072,32511.0,32510.0,0.24057544]
[1625735907077,0.70129072,32511.0,32510.0,0.34057544]
[1625735907230,0.70129072,32511.0,32510.0,0.34420464]
[1625735907530,0.70129072,32511.0,32510.0,0.34057544]
[1625735907678,1.70129072,32511.0,32510.0,0.34057544]
[1625735907981,1.70129072,32511.0,32510.0,0.34420476]
[1625735908130,2.75306532,32511.0,32510.0,0.34420476]
[1625735908430,1.75306532,32511.0,32510.0,0.34420476]
[1625735908732,0.70129072,32511.0,32510.0,0.34420476]
[1625735908882,0.70129072,32511.0,32510.0,0.64133476]
[1625735909783,0.70123985,32512.0,32510.0,0.64133476]
[1625735910083,0.70123985,32512.0,32511.0,0.00362924]
[1625735910235,1.75301361,32512.0,32511.0,0.00362924]
[1625735910534,0.70123985,32512.0,32511.0,0.00362924]
[1625735910683,0.7012163,32513.0,32511.0,0.10362924]
[1625735910832,0.7012163,32513.0,32512.0,0.24057544]
[1625735911133,0.7012163,32513.0,32512.0,0.24420455]
[1625735911436,0.7012163,32513.0,32512.0,0.34420455]
[1625735911884,0.7012163,32513.0,32512.0,5.60920455]
[1625735913235,0.70095336,32514.0,32512.0,5.60920455]
[1625735913534,1.70095336,32514.0,32513.0,0.00362905]
[1625735913986,0.70095336,32514.0,32513.0,0.10362905]
[1625735915785,0.70110537,32515.0,32513.0,0.10362905]
[1625735916237,0.70110537,32515.0,32514.0,0.003629]
[1625735916535,0.70110537,32515.0,32514.0,0.1]
[1625735916760,0.70110537,32515.0,32514.0,0.10362901]
[1625735916913,0.70110537,32515.0,32514.0,0.34420445]
[1625735918186,1.70110537,32515.0,32514.0,0.34420445]
[1625735918789,2.75131684,32515.0,32514.0,0.34420445]
[1625735919315,1.75131684,32515.0,32514.0,0.34420445]
[1625735919619,2.75131684,32515.0,32514.0,0.34420445]
[1625735919766,2.75131684,32515.0,32512.0,5.265]
[1625735919917,3.03417684,32515.0,32512.0,5.265]
[1625735920068,1.74810201,32513.0,32512.0,5.265]
[1625735920367,2.74810201,32513.0,32512.0,5.265]
[1625735920517,1.69927576,32513.0,32512.0,5.26862944]
[1625735920817,0.69927576,32513.0,32512.0,5.26862944]
[1625735920968,2.18042664,32513.0,32512.0,5.26862944]
[1625735921568,1.48115088,32513.0,32512.0,5.26862944]
[1625735922920,2.18068551,32513.0,32512.0,5.26862944]
[1625735923972,1.18068551,32513.0,32512.0,5.26862944]
[1625735924575,0.48115088,32513.0,32512.0,5.26862944]
[1625735924797,1.48115088,32513.0,32512.0,5.26862944]
[1625735926300,2.43674806,32513.0,32512.0,5.26862944]
[1625735929305,1.73667088,32513.0,32512.0,5.26862944]
[1625735929455,1.48115088,32513.0,32512.0,5.26862944]
[1625735929605,2.18135874,32513.0,32512.0,5.26862944]
[1625735929983,1.48115088,32513.0,32512.0,5.26862944]
[1625735930582,2.00663028,32513.0,32512.0,5.26862944]
[1625735931632,2.32359028,32513.0,32512.0,5.26862944]
[1625735931784,1.79811088,32513.0,32512.0,5.26862944]
[1625735932233,2.32309874,32513.0,32512.0,5.26862944]
[1625735933361,3.02372881,32513.0,32512.0,5.26862944]
[1625735934260,3.11512881,32513.0,32512.0,5.26862944]
[1625735935161,2.63397793,32513.0,32512.0,5.26862944]
[1625735935313,2.63397793,32513.0,32512.0,5.265]
[1625735935314,3.68518582,32513.0,32512.0,5.265]
[1625735935611,4.64748758,32513.0,32512.0,5.26862925]
[1625735936212,3.59627969,32513.0,32512.0,5.26862925]
[1625735936362,2.59627969,32513.0,32512.0,5.26862925]
[1625735936513,3.59627969,32513.0,32512.0,5.26862925]
[1625735937416,4.64905826,32513.0,32512.0,5.26862925]
[1625735938015,4.55765826,32513.0,32512.0,5.26862925]
[1625735944104,4.78605454,32513.0,32506.0,1.26366304]
[1625735944255,4.87915454,32513.0,32506.0,1.26366304]
[1625735944406,0.52637179,32509.0,32505.0,1.26402423]
[1625735944554,0.5261381,32508.0,32507.0,0.00362926]
[1625735944703,0.6196381,32508.0,32507.0,0.00362926]
[1625735944854,0.6196381,32508.0,32506.0,0.01270232]
[1625735945004,0.52668885,32507.0,32503.0,1.26527932]
[1625735945334,0.5266291,32505.0,32504.0,0.01270322]
[1625735945462,0.8681291,32505.0,32504.0,0.01270322]
[1625735945622,0.8681291,32505.0,32504.0,0.00362949]
[1625735945905,1.34927998,32505.0,32504.0,0.00362949]
[1625735946364,1.34927998,32505.0,32503.0,0.00362967]
[1625735946809,0.52653017,32504.0,32503.0,0.00362967]
[1625735946958,1.52653017,32504.0,32503.0,0.00362967]
[1625735948987,1.52653017,32504.0,32503.0,1.27037708]
[1625735949135,0.52653017,32504.0,32503.0,1.27037708]
[1625735949285,1.52653017,32504.0,32503.0,1.27037708]
[1625735949586,1.52653017,32504.0,32503.0,0.00362967]
[1625735950186,1.52653017,32504.0,32503.0,1.27039541]
[1625735950786,0.52653017,32504.0,32503.0,1.27039541]
[1625735951088,1.52653017,32504.0,32503.0,1.27039541]
[1625735951540,1.52653017,32504.0,32503.0,0.00362967]
[1625735951840,0.52653017,32504.0,32503.0,0.00362967]
[1625735951990,0.52653017,32504.0,32503.0,1.2705727]
[1625735952140,1.52653017,32504.0,32503.0,1.2705727]
[1625735952890,1.52653017,32504.0,32503.0,2.71891746]
[1625735953865,1.52653017,32504.0,32503.0,2.81891746]
[1625735955667,1.52653017,32504.0,32503.0,1.3705727]
[1625735955819,1.74573017,32504.0,32503.0,1.3705727]
[1625735957018,0.74573017,32504.0,32503.0,1.3705727]
[1625735957168,1.74573017,32504.0,32503.0,1.3705727]
[1625735958894,1.74573017,32504.0,32503.0,1.2415727]
[1625735959346,1.74573017,32504.0,32503.0,1.1705727]
[1625735960096,1.74573017,32504.0,32503.0,1.17420247]
[1625735960849,0.74573017,32504.0,32503.0,1.17420247]
[1625735960999,0.52653017,32504.0,32503.0,1.17420247]
[1625735961148,1.52653017,32504.0,32503.0,1.17420247]
[1625735961298,1.52653017,32504.0,32503.0,2.62313283]
[1625735961448,1.61783017,32504.0,32503.0,2.85938283]
[1625735961599,1.87672055,32504.0,32503.0,2.85938283]
[1625735962352,1.0,32504.0,32503.0,2.85938283]
[1625735962655,1.0,32504.0,32503.0,4.49836566]
[1625735963554,0.48115088,32505.0,32503.0,4.49836566]
[1625735963853,0.48115088,32505.0,32504.0,3.07943659]
[1625735964002,0.48115088,32505.0,32504.0,3.09213861]
[1625735964680,0.48115088,32505.0,32504.0,3.19213861]
[1625735964983,1.48115088,32505.0,32504.0,3.19213861]
[1625735966408,0.48115088,32505.0,32504.0,3.19213861]
[1625735966736,0.48115088,32505.0,32504.0,3.201215]
[1625735967008,0.48115088,32505.0,32504.0,3.662232]
[1625735967759,0.24057544,32505.0,32504.0,3.662232]
[1625735967909,0.52526972,32511.0,32504.0,5.47347845]
[1625735967910,1.96866778,32511.0,32504.0,5.47347845]
[1625735968060,1.96866778,32511.0,32505.0,0.00907612]
[1625735968209,1.96866778,32511.0,32510.0,1.92988102]
[1625735968210,1.35019806,32511.0,32510.0,1.92988102]
[1625735968361,1.35019806,32511.0,32510.0,2.22038102]
[1625735968662,1.35019806,32511.0,32510.0,2.22996375]
[1625735968812,1.0,32511.0,32510.0,2.22996375]
[1625735969185,1.87584036,32512.0,32510.0,2.22996375]
[1625735969335,0.87584036,32512.0,32510.0,2.42176375]
[1625735969485,0.35050915,32512.0,32511.0,1.44861259]
[1625735969637,0.35050915,32512.0,32511.0,1.45224124]
[1625735970088,0.35050915,32512.0,32511.0,1.55224124]
[1625735970238,1.11685455,32513.0,32511.0,1.55224124]
[1625735970536,0.59098994,32513.0,32512.0,1.45186541]
[1625735970690,0.24057544,32513.0,32512.0,1.45186541]
[1625735971137,0.24057544,32513.0,32512.0,1.55186541]
[1625735974214,0.24057544,32513.0,32512.0,1.79244085]
[1625735976620,0.87597736,32514.0,32513.0,4.256]
[1625735976918,0.87597736,32514.0,32513.0,4.25962832]
[1625735977816,0.87597736,32514.0,32513.0,4.35962832]
[1625735978269,0.87597736,32514.0,32513.0,4.60020376]
[1625735983074,0.87597736,32514.0,32513.0,5.05864676]
[1625735986075,7.736e-05,32514.0,32513.0,5.05864676]
[1625735988478,7.736e-05,32514.0,32513.0,5.06771553]
[1625735988779,7.736e-05,32514.0,32513.0,5.05864676]
[1625735990356,7.736e-05,32514.0,32513.0,5.06771559]
[1625735991644,7.736e-05,32514.0,32513.0,5.05864676]
[1625735991932,7.736e-05,32514.0,32513.0,5.06771555]
[1625736001017,0.17534204,32514.0,32513.0,5.06771555]
[1625736001770,0.9549,32521.0,32513.0,12.3101091]
[1625736001919,0.9549,32521.0,32513.0,12.5233591]
[1625736002145,0.9549,32521.0,32514.0,0.01269604]
[1625736002295,0.9549,32521.0,32520.0,5.4249846]
[1625736002594,0.9549,32521.0,32520.0,5.91288348]
[1625736002750,0.9549,32521.0,32520.0,6.01651097]
[1625736002937,0.9549,32521.0,32520.0,3.90111671]
[1625736003047,1.9549,32521.0,32520.0,3.90111671]
[1625736003346,1.9549,32521.0,32520.0,2.45445415]
[1625736003497,7.4381,32521.0,32520.0,1.18862441]
[1625736004097,7.4381,32521.0,32520.0,0.10362749]
[1625736004249,7.4381,32521.0,32520.0,0.82535888]
[1625736004547,7.67867544,32521.0,32520.0,0.82535888]
[1625736005226,7.77097544,32521.0,32519.0,0.71214178]
[1625736005412,8.01445544,32521.0,32518.0,0.72175655]
[1625736005681,0.69719951,32519.0,32514.0,0.72154736]
[1625736005836,0.17440649,32516.0,32514.0,0.72154736]
[1625736006124,1.0,32515.0,32514.0,0.72154736]
[1625736006428,1.0,32515.0,32514.0,0.00362852]
[1625736006580,1.65545414,32515.0,32514.0,0.00362852]
[1625736006724,1.65545414,32515.0,32512.0,0.00362859]
[1625736007024,1.65545414,32515.0,32510.0,0.00362865]
[1625736007176,0.65545414,32515.0,32510.0,0.00362865]
[1625736007325,1.0,32513.0,32509.0,1.26261268]
[1625736007474,1.0,32511.0,32509.0,1.26261268]
[1625736007849,1.0,32511.0,32510.0,0.00362856]
[1625736007998,6.2436,32511.0,32510.0,0.00362856]
[1625736008600,6.48417544,32511.0,32510.0,0.00362856]
[1625736008749,6.72475088,32511.0,32510.0,0.00362856]
[1625736009951,5.72475088,32511.0,32510.0,0.00362856]
[1625736010101,6.72475088,32511.0,32510.0,0.00362856]
[1625736012966,6.72475088,32511.0,32509.0,1.26261268]
[1625736012967,6.72475088,32511.0,32509.0,1.06624124]
[1625736013131,0.17447313,32510.0,32504.0,1.44416324]
[1625736013403,0.17447313,32510.0,32505.0,0.00362889]
[1625736013558,0.17439901,32508.0,32505.0,0.00362889]
[1625736013854,1.0,32506.0,32505.0,0.00362889]
[1625736014002,1.29187,32506.0,32504.0,0.0036292]
[1625736014153,1.29187,32506.0,32505.0,0.00362937]